fUSD/lending_fUSD_20260519
["ID","MTS","AMOUNT","RATE_DAILY","PERIOD"]
[422648183,1779205843000,-500.0,0.00017919,2]
[422648190,1779205843000,-6163.16745885,0.00018,2]
[422648185,1779205843000,-500.0,0.00017919,2]
[422648184,1779205843000,-500.0,0.00017919,2]
[422648187,1779205843000,-500.0,0.00017919,2]
[422648186,1779205843000,-500.0,0.00017919,2]
[422648188,1779205843000,-500.0,0.00017919,2]
[422648178,1779205843000,-200.0,0.00017873,2]
[422648189,1779205843000,-585.0,0.00017919,2]
[422648252,1779205844000,-500.0,0.00018914,2]
[422648249,1779205844000,-500.0,0.00018914,2]
[422648251,1779205844000,-500.0,0.00018914,2]
[422648246,1779205844000,-500.0,0.00018914,2]
[422648247,1779205844000,-500.0,0.00018914,2]
[422648245,1779205844000,-500.0,0.00018914,2]
[422648254,1779205844000,-500.0,0.00018914,2]
[422648250,1779205844000,-500.0,0.00018914,2]
[422648253,1779205844000,-500.0,0.00018914,2]
[422648264,1779205844000,-500.0,0.00018914,2]
[422648255,1779205844000,-500.0,0.00018914,2]
[422648259,1779205844000,-500.0,0.00018914,2]
[422648261,1779205844000,-500.0,0.00018914,2]
[422648260,1779205844000,-500.0,0.00018914,2]
[422648258,1779205844000,-500.0,0.00018914,2]
[422648257,1779205844000,-500.0,0.00018914,2]
[422648262,1779205844000,-500.0,0.00018914,2]
[422648265,1779205844000,-500.0,0.00018914,2]
[422648248,1779205844000,-500.0,0.00018914,2]
[422648256,1779205844000,-500.0,0.00018914,2]
[422648244,1779205844000,-625.0,0.00018914,2]
[422648233,1779205844000,-314.0,0.00018589,2]
[422648242,1779205844000,-151.0,0.0001865,2]
[422648266,1779205844000,-500.0,0.00018914,2]
[422648219,1779205844000,-165.31531571,0.000184,2]
[422648220,1779205844000,-203.3,0.0001841,2]
[422648218,1779205844000,-930.0,0.00018377,2]
[422648221,1779205844000,-26811.0,0.000185,2]
[422648223,1779205844000,-500.0,0.00018548,2]
[422648225,1779205844000,-250.0,0.00018589,2]
[422648227,1779205844000,-250.0,0.00018589,2]
[422648228,1779205844000,-250.0,0.00018589,2]
[422648230,1779205844000,-250.0,0.00018589,2]
[422648229,1779205844000,-250.0,0.00018589,2]
[422648232,1779205844000,-250.0,0.00018589,2]
[422648231,1779205844000,-250.0,0.00018589,2]
[422648234,1779205844000,-151.0,0.0001865,2]
[422648235,1779205844000,-150.0,0.0001865,2]
[422648236,1779205844000,-150.0,0.0001865,2]
[422648237,1779205844000,-238.138,0.0001865,2]
[422648238,1779205844000,-150.352,0.0001865,2]
[422648240,1779205844000,-150.0,0.0001865,2]
[422648241,1779205844000,-250.0,0.0001865,2]
[422648239,1779205844000,-192.979,0.0001865,2]
[422648243,1779205844000,-150.972,0.0001865,2]
[422648267,1779205844000,-670.0,0.00018914,2]
[422648263,1779205844000,-500.0,0.00018914,2]
[422648268,1779205844000,-500.0,0.00018914,2]
[422648295,1779205844000,-274.662843,0.00019022,2]
[422648296,1779205844000,-274.662843,0.00019022,2]
[422648297,1779205844000,-151.0,0.00019022,2]
[422648298,1779205844000,-151.0,0.00019022,2]
[422648300,1779205844000,-151.0,0.00019022,2]
[422648303,1779205844000,-151.0,0.00019022,2]
[422648304,1779205844000,-151.0,0.00019022,2]
[422648302,1779205844000,-151.0,0.00019022,2]
[422648299,1779205844000,-151.0,0.00019022,2]
[422648294,1779205844000,-274.662843,0.00019022,2]
[422648301,1779205844000,-151.0,0.00019022,2]
[422648308,1779205844000,-1541.0,0.00019022,2]
[422648305,1779205844000,-151.0,0.00019022,2]
[422648309,1779205844000,-1541.0,0.00019022,2]
[422648310,1779205844000,-1541.0,0.00019022,2]
[422648311,1779205844000,-1541.0,0.00019022,2]
[422648314,1779205844000,-1541.0,0.00019022,2]
[422648312,1779205844000,-1541.0,0.00019022,2]
[422648313,1779205844000,-1541.0,0.00019022,2]
[422648271,1779205844000,-500.0,0.00018914,2]
[422648307,1779205844000,-1541.0,0.00019022,2]
[422648290,1779205844000,-151.0,0.00019022,2]
[422648306,1779205844000,-1541.0,0.00019022,2]
[422648292,1779205844000,-151.0,0.00019022,2]
[422648270,1779205844000,-500.0,0.00018914,2]
[422648289,1779205844000,-151.0,0.00019022,2]
[422648269,1779205844000,-500.0,0.00018914,2]
[422648273,1779205844000,-500.0,0.00018914,2]
[422648272,1779205844000,-500.0,0.00018914,2]
[422648274,1779205844000,-500.0,0.00018914,2]
[422648277,1779205844000,-2410.74147271,0.00019,2]
[422648280,1779205844000,-160.0,0.00019,30]
[422648275,1779205844000,-680.0,0.00018914,2]
[422648278,1779205844000,-634.29,0.00019,2]
[422648276,1779205844000,-1589.97186242,0.00018922,2]
[422648282,1779205844000,-215.15951567,0.00019,30]
[422648281,1779205844000,-260.0,0.00019,2]
[422648283,1779205844000,-200.0,0.00019,2]
[422648284,1779205844000,-160.0,0.00019,2]
[422648286,1779205844000,-234.0,0.00019,2]
[422648285,1779205844000,-325.55406919,0.00019,2]
[422648287,1779205844000,-300.0,0.00019021,2]
[422648293,1779205844000,-274.662843,0.00019022,2]
[422648279,1779205844000,-164.0,0.00019,2]
[422648288,1779205844000,-151.0,0.00019022,2]
[422648291,1779205844000,-151.0,0.00019022,2]
[422648346,1779205845000,-152.0,0.00019022,2]
[422648355,1779205845000,-259.7261835,0.00019022,2]
[422648353,1779205845000,-152.0,0.00019022,2]
[422648352,1779205845000,-152.0,0.00019022,2]
[422648350,1779205845000,-152.0,0.00019022,2]
[422648349,1779205845000,-152.0,0.00019022,2]
[422648347,1779205845000,-152.0,0.00019022,2]
[422648348,1779205845000,-152.0,0.00019022,2]
[422648345,1779205845000,-152.0,0.00019022,2]
[422648356,1779205845000,-151.0,0.00019029,2]
[422648351,1779205845000,-152.0,0.00019022,2]
[422648357,1779205845000,-2421.57879457,0.00019101,4]
[422648366,1779205845000,-250.0,0.00019742,2]
[422648360,1779205845000,-216.916581,0.00019178,2]
[422648359,1779205845000,-151.0,0.00019178,2]
[422648354,1779205845000,-152.0,0.00019022,2]
[422648361,1779205845000,-151.0,0.00019178,2]
[422648364,1779205845000,-300.0,0.0001968,2]
[422648362,1779205845000,-263.721482,0.00019178,2]
[422648363,1779205845000,-349.5,0.00019266,2]
[422648365,1779205845000,-893.0,0.00019681,5]
[422648367,1779205845000,-250.0,0.00019742,2]
[422648371,1779205845000,-250.0,0.00019742,2]
[422648368,1779205845000,-250.0,0.00019742,2]
[422648343,1779205845000,-152.0,0.00019022,2]
[422648358,1779205845000,-504.73,0.00019178,2]
[422648344,1779205845000,-152.0,0.00019022,2]
[422648319,1779205845000,-1541.0,0.00019022,2]
[422648340,1779205845000,-152.0,0.00019022,2]
[422648369,1779205845000,-250.0,0.00019742,2]
[422648315,1779205845000,-1541.0,0.00019022,2]
[422648317,1779205845000,-1541.0,0.00019022,2]
[422648316,1779205845000,-1541.0,0.00019022,2]
[422648318,1779205845000,-1541.0,0.00019022,2]
[422648321,1779205845000,-1541.0,0.00019022,2]
[422648320,1779205845000,-1541.0,0.00019022,2]
[422648322,1779205845000,-1541.0,0.00019022,2]
[422648323,1779205845000,-1541.0,0.00019022,2]
[422648326,1779205845000,-1541.0,0.00019022,2]
[422648324,1779205845000,-1541.0,0.00019022,2]
[422648325,1779205845000,-1541.0,0.00019022,2]
[422648342,1779205845000,-152.0,0.00019022,2]
[422648328,1779205845000,-1541.0,0.00019022,2]
[422648330,1779205845000,-1541.0,0.00019022,2]
[422648329,1779205845000,-1541.0,0.00019022,2]
[422648332,1779205845000,-479.37347859,0.00019022,2]
[422648331,1779205845000,-1541.0,0.00019022,2]
[422648333,1779205845000,-153.0,0.00019022,2]
[422648337,1779205845000,-152.0,0.00019022,2]
[422648336,1779205845000,-235.0,0.00019022,2]
[422648338,1779205845000,-152.0,0.00019022,2]
[422648334,1779205845000,-153.0,0.00019022,2]
[422648335,1779205845000,-153.0,0.00019022,2]
[422648339,1779205845000,-152.0,0.00019022,2]
[422648341,1779205845000,-152.0,0.00019022,2]
[422648327,1779205845000,-1541.0,0.00019022,2]
[422648370,1779205845000,-250.0,0.00019742,2]
[422648411,1779205845000,-150.0,0.0002017,2]
[422648372,1779205845000,-250.0,0.00019742,2]
[422648405,1779205845000,-150.0,0.0002017,2]
[422648402,1779205845000,-150.0,0.0002017,2]
[422648406,1779205845000,-150.0,0.0002017,2]
[422648408,1779205845000,-150.0,0.0002017,2]
[422648407,1779205845000,-150.0,0.0002017,2]
[422648431,1779205845000,-150.0,0.0002049,4]
[422648413,1779205845000,-239.50437,0.00020209,2]
[422648415,1779205845000,-150.0,0.00020214,4]
[422648410,1779205845000,-150.0,0.0002017,2]
[422648416,1779205845000,-150.0,0.00020258,4]
[422648418,1779205845000,-150.0,0.00020302,4]
[422648417,1779205845000,-150.0,0.00020277,4]
[422648404,1779205845000,-150.0,0.0002017,2]
[422648422,1779205845000,-203.3,0.00020381,2]
[422648423,1779205845000,-150.0,0.00020383,4]
[422648419,1779205845000,-150.0,0.00020319,4]
[422648420,1779205845000,-150.0,0.00020342,4]
[422648425,1779205845000,-150.0,0.00020434,4]
[422648428,1779205845000,-150.0,0.00020469,4]
[422648427,1779205845000,-150.0,0.0002045,4]
[422648424,1779205845000,-150.0,0.0002039,4]
[422648426,1779205845000,-500.0,0.00020438,2]
[422648430,1779205845000,-150.0,0.0002049,4]
[422648429,1779205845000,-150.0,0.00020477,4]
[422648432,1779205845000,-150.0,0.0002049,4]
[422648433,1779205845000,-150.0,0.00020515,4]
[422648421,1779205845000,-150.0,0.00020346,4]
[422648403,1779205845000,-150.65153186,0.0002017,2]
[422648373,1779205845000,-250.0,0.00019742,2]
[422648401,1779205845000,-150.0,0.0002017,2]
[422648374,1779205845000,-343.0,0.00019742,2]
[422648377,1779205845000,-2866.495056,0.0002,2]
[422648375,1779205845000,-2122.98,0.00019968,2]
[422648376,1779205845000,-1483.98,0.00019968,2]
[422648379,1779205845000,-400.0,0.0002,2]
[422648381,1779205845000,-260.0,0.0002,2]
[422648378,1779205845000,-351.14507117,0.0002,2]
[422648400,1779205845000,-151.300204,0.0002017,2]
[422648383,1779205845000,-200.0,0.0002,2]
[422648380,1779205845000,-164.0,0.0002,2]
[422648382,1779205845000,-1804.5822479,0.0002,2]
[422648385,1779205845000,-249.21,0.0002,2]
[422648387,1779205845000,-234.0,0.0002,2]
[422648384,1779205845000,-2386.0,0.0002,2]
[422648388,1779205845000,-3162.0,0.00020117,2]
[422648386,1779205845000,-981.0,0.0002,2]
[422648399,1779205845000,-150.0,0.0002017,2]
[422648397,1779205845000,-200.0,0.00020155,2]
[422648398,1779205845000,-200.0,0.00020155,2]
[422648394,1779205845000,-200.0,0.00020155,2]
[422648396,1779205845000,-200.0,0.00020155,2]
[422648392,1779205845000,-200.0,0.00020155,2]
[422648393,1779205845000,-200.0,0.00020155,2]
[422648390,1779205845000,-200.0,0.00020155,2]
[422648391,1779205845000,-200.0,0.00020155,2]
[422648389,1779205845000,-200.0,0.00020155,2]
[422648395,1779205845000,-200.0,0.00020155,2]
[422648478,1779205846000,-260.0,0.00021,2]
[422648479,1779205846000,-200.0,0.00021,2]
[422648480,1779205846000,-500.0,0.00021,2]
[422648477,1779205846000,-164.0,0.00021,2]
[422648475,1779205846000,-150.0,0.00020961,4]
[422648471,1779205846000,-150.0,0.00020917,4]
[422648476,1779205846000,-161.0,0.00021,14]
[422648472,1779205846000,-150.0,0.00020917,4]
[422648470,1779205846000,-396.53,0.000209,7]
[422648473,1779205846000,-150.0,0.00020917,4]
[422648474,1779205846000,-150.0,0.00020917,4]
[422648481,1779205846000,-234.0,0.00021,2]
[422648495,1779205846000,-150.0,0.0002113,4]
[422648485,1779205846000,-185.59993662,0.00021,2]
[422648482,1779205846000,-164.0,0.00021,2]
[422648484,1779205846000,-300.0,0.00021,2]
[422648487,1779205846000,-150.0,0.0002101,4]
[422648488,1779205846000,-150.0,0.00021024,4]
[422648486,1779205846000,-150.0,0.00021005,4]
[422648490,1779205846000,-150.0,0.00021049,4]
[422648491,1779205846000,-150.0,0.00021066,4]
[422648489,1779205846000,-150.0,0.00021032,4]
[422648492,1779205846000,-150.0,0.00021066,2]
[422648493,1779205846000,-150.0,0.00021093,4]
[422648494,1779205846000,-150.0,0.0002113,4]
[422648468,1779205846000,-150.0,0.00020859,4]
[422648483,1779205846000,-300.0,0.00021,2]
[422648469,1779205846000,-150.0,0.00020873,4]
[422648448,1779205846000,-1230.0,0.000207,2]
[422648467,1779205846000,-1637.08748206,0.00020848,2]
[422648499,1779205846000,-634.29,0.000212,2]
[422648434,1779205846000,-150.0,0.00020521,4]
[422648435,1779205846000,-150.0,0.00020565,4]
[422648436,1779205846000,-150.0,0.00020597,4]
[422648438,1779205846000,-150.0,0.00020618,2]
[422648437,1779205846000,-150.0,0.00020609,4]
[422648439,1779205846000,-150.0,0.00020618,4]
[422648440,1779205846000,-150.0,0.00020653,4]
[422648441,1779205846000,-150.0,0.00020687,4]
[422648442,1779205846000,-150.0,0.00020697,4]
[422648443,1779205846000,-300.0,0.00020699,2]
[422648447,1779205846000,-590.0,0.000207,2]
[422648466,1779205846000,-150.0,0.00020829,4]
[422648446,1779205846000,-1576.0,0.000207,2]
[422648444,1779205846000,-1722.0,0.000207,2]
[422648450,1779205846000,-1378.0,0.000207,2]
[422648454,1779205846000,-150.0,0.00020703,4]
[422648452,1779205846000,-394.0,0.000207,2]
[422648456,1779205846000,-150.0,0.0002073,4]
[422648458,1779205846000,-150.0,0.00020741,4]
[422648463,1779205846000,-150.0,0.0002081,4]
[422648462,1779205846000,-432.6849197,0.000208,30]
[422648465,1779205846000,-150.0,0.0002081,4]
[422648461,1779205846000,-150.0,0.00020785,4]
[422648460,1779205846000,-150.0,0.00020767,4]
[422648464,1779205846000,-150.0,0.0002081,4]
[422648445,1779205846000,-15748.0,0.000207,2]
[422648498,1779205846000,-150.0,0.00021181,4]
[422648496,1779205846000,-150.0,0.0002113,4]
[422648500,1779205846000,-200.0,0.000212,10]
[422648531,1779205846000,-150.0,0.00021571,4]
[422648532,1779205846000,-150.0,0.00021576,4]
[422648534,1779205846000,-509.12282674,0.00021623,2]
[422648535,1779205846000,-150.0,0.0002165,2]
[422648536,1779205846000,-150.0,0.0002165,2]
[422648537,1779205846000,-150.0,0.0002165,2]
[422648538,1779205846000,-150.0,0.0002165,2]
[422648542,1779205846000,-150.0,0.0002165,2]
[422648541,1779205846000,-150.0,0.0002165,2]
[422648540,1779205846000,-150.0,0.0002165,2]
[422648539,1779205846000,-150.0,0.0002165,2]
[422648543,1779205846000,-150.0,0.00021664,4]
[422648546,1779205846000,-150.0,0.00021664,4]
[422648548,1779205846000,-150.0,0.00021708,4]
[422648549,1779205846000,-150.0,0.00021721,4]
[422648547,1779205846000,-150.0,0.00021664,4]
[422648550,1779205846000,-150.0,0.00021752,4]
[422648552,1779205846000,-150.0,0.00021771,4]
[422648551,1779205846000,-150.0,0.00021771,4]
[422648555,1779205846000,-150.0,0.00021813,4]
[422648553,1779205846000,-150.0,0.00021771,4]
[422648554,1779205846000,-150.0,0.00021796,4]
[422648557,1779205846000,-249.21,0.00021846,2]
[422648556,1779205846000,-150.0,0.0002184,4]
[422648558,1779205846000,-150.0,0.00021851,4]
[422648559,1779205846000,-150.0,0.00021877,4]
[422648497,1779205846000,-150.0,0.00021137,4]
[422648533,1779205846000,-150.0,0.0002162,4]
[422648530,1779205846000,-150.0,0.00021557,4]
[422648544,1779205846000,-150.0,0.00021664,4]
[422648528,1779205846000,-150.0,0.00021532,4]
[422648529,1779205846000,-150.0,0.00021549,4]
[422648501,1779205846000,-150.0,0.00021204,4]
[422648503,1779205846000,-150.0,0.00021216,4]
[422648504,1779205846000,-150.0,0.00021224,4]
[422648505,1779205846000,-150.0,0.00021237,4]
[422648507,1779205846000,-85914.58,0.00021273,2]
[422648506,1779205846000,-150.0,0.00021268,4]
[422648509,1779205846000,-300.0,0.000213,10]
[422648510,1779205846000,-150.0,0.00021312,4]
[422648508,1779205846000,-150.0,0.0002129,4]
[422648512,1779205846000,-150.0,0.00021356,4]
[422648513,1779205846000,-150.0,0.00021365,4]
[422648511,1779205846000,-150.0,0.00021344,4]
[422648514,1779205846000,-6466.77,0.0002137,2]
[422648502,1779205846000,-236.64,0.00021205,2]
[422648527,1779205846000,-150.0,0.00021515,2]
[422648515,1779205846000,-150.0,0.00021377,4]
[422648526,1779205846000,-150.0,0.00021515,4]
[422648520,1779205846000,-150.0,0.000214,4]
[422648522,1779205846000,-150.0,0.0002145,4]
[422648524,1779205846000,-150.0,0.0002145,4]
[422648525,1779205846000,-150.0,0.00021488,4]
[422648521,1779205846000,-150.0,0.00021444,4]
[422648519,1779205846000,-262.065,0.00021377,2]
[422648518,1779205846000,-1224.0,0.00021377,2]
[422648517,1779205846000,-625.0,0.00021377,2]
[422648516,1779205846000,-3544.0,0.00021377,2]
[422648523,1779205846000,-150.0,0.0002145,4]
[422648604,1779205847000,-254.67783396,0.00022411,4]
[422648605,1779205847000,-152.75252402,0.00022411,4]
[422648606,1779205847000,-152.60139806,0.00022411,4]
[422648603,1779205847000,-152.10400649,0.00022411,4]
[422648600,1779205847000,-150.0,0.00022323,4]
[422648590,1779205847000,-150.0,0.00022191,4]
[422648601,1779205847000,-203.3,0.00022353,2]
[422648602,1779205847000,-150.0,0.00022367,4]
[422648597,1779205847000,-150.0,0.00022262,4]
[422648598,1779205847000,-150.0,0.00022279,4]
[422648607,1779205847000,-225.67224447,0.00022411,4]
[422648593,1779205847000,-150.0,0.00022235,4]
[422648599,1779205847000,-150.0,0.00022304,4]
[422648608,1779205847000,-152.35107502,0.00022411,4]
[422648614,1779205847000,-300.0,0.00022414,2]
[422648611,1779205847000,-229.00156449,0.00022411,4]
[422648610,1779205847000,-170.41262241,0.00022411,4]
[422648612,1779205847000,-284.58525916,0.00022411,4]
[422648613,1779205847000,-151.0,0.00022412,2]
[422648616,1779205847000,-10989.1687793,0.00022415,2]
[422648615,1779205847000,-519612.4690399,0.00022415,2]
[422648618,1779205847000,-35535.3905211,0.00022415,2]
[422648619,1779205847000,-300.0,0.00022815,2]
[422648617,1779205847000,-2224.7173499,0.00022415,2]
[422648621,1779205847000,-1012.73496005,0.00023,2]
[422648620,1779205847000,-865.3698394,0.000229,30]
[422648623,1779205847000,-164.0,0.00023,2]
[422648622,1779205847000,-364.0,0.00023,30]
[422648609,1779205847000,-153.99235667,0.00022411,4]
[422648592,1779205847000,-150.0,0.00022198,4]
[422648560,1779205847000,-150.0,0.00021884,4]
[422648591,1779205847000,-284.0,0.00022192,7]
[422648625,1779205847000,-200.0,0.00023,2]
[422648561,1779205847000,-150.0,0.00021894,4]
[422648562,1779205847000,-5000.0,0.00021918,2]
[422648563,1779205847000,-152.577983,0.00021918,2]
[422648566,1779205847000,-150.0,0.00021963,4]
[422648564,1779205847000,-150.0,0.00021928,4]
[422648565,1779205847000,-164.0,0.00021947,3]
[422648567,1779205847000,-150.0,0.00021963,4]
[422648568,1779205847000,-150.0,0.00021972,4]
[422648570,1779205847000,-450.0,0.00022,2]
[422648569,1779205847000,-150.0,0.00021984,4]
[422648574,1779205847000,-200.0,0.00022,2]
[422648575,1779205847000,-234.0,0.00022,2]
[422648596,1779205847000,-150.0,0.00022239,4]
[422648572,1779205847000,-164.0,0.00022,2]
[422648571,1779205847000,-284.0,0.00022,2]
[422648577,1779205847000,-150.0,0.00022015,4]
[422648576,1779205847000,-663.38,0.00022,2]
[422648579,1779205847000,-150.0,0.00022066,4]
[422648578,1779205847000,-150.0,0.00022059,4]
[422648580,1779205847000,-150.0,0.00022091,4]
[422648582,1779205847000,-150.0,0.00022091,4]
[422648583,1779205847000,-150.0,0.00022103,4]
[422648584,1779205847000,-150.0,0.00022112,4]
[422648586,1779205847000,-4427.0,0.0002212,2]
[422648581,1779205847000,-150.0,0.00022091,4]
[422648589,1779205847000,-150.0,0.00022147,4]
[422648588,1779205847000,-150.0,0.00022131,4]
[422648573,1779205847000,-260.0,0.00022,2]
[422648624,1779205847000,-260.0,0.00023,2]
[422648682,1779205847000,-274.662843,0.00025,2]
[422648627,1779205847000,-284.0,0.00023014,7]
[422648660,1779205847000,-599.68,0.00024658,2]
[422648662,1779205847000,-151.0,0.00024658,2]
[422648666,1779205847000,-166.84,0.00024658,2]
[422648664,1779205847000,-151.0,0.00024658,2]
[422648661,1779205847000,-1000.0,0.00024658,2]
[422648667,1779205847000,-997.65530577,0.00025,2]
[422648665,1779205847000,-151.0,0.00024658,2]
[422648663,1779205847000,-151.0,0.00024658,2]
[422648669,1779205847000,-425000.0,0.00025,20]
[422648670,1779205847000,-208.58623393,0.00025,30]
[422648671,1779205847000,-208.58623393,0.00025,7]
[422648672,1779205847000,-4423.03224881,0.00025,2]
[422648668,1779205847000,-18785.92493039,0.00025,2]
[422648659,1779205847000,-167.23916692,0.00024658,2]
[422648674,1779205847000,-215.15951567,0.00025,7]
[422648676,1779205847000,-151.0,0.00025,2]
[422648675,1779205847000,-151.0,0.00025,2]
[422648678,1779205847000,-151.0,0.00025,2]
[422648679,1779205847000,-151.0,0.00025,2]
[422648673,1779205847000,-160.0,0.00025,7]
[422648680,1779205847000,-151.0,0.00025,2]
[422648681,1779205847000,-274.662843,0.00025,2]
[422648684,1779205847000,-274.662843,0.00025,2]
[422648683,1779205847000,-274.662843,0.00025,2]
[422648685,1779205847000,-159.28972,0.00025,2]
[422648686,1779205847000,-159.28972,0.00025,2]
[422648629,1779205847000,-500.0,0.00023233,2]
[422648687,1779205847000,-159.28972,0.00025,2]
[422648677,1779205847000,-151.0,0.00025,2]
[422648658,1779205847000,-150.0,0.0002465,2]
[422648688,1779205847000,-159.28972,0.00025,2]
[422648653,1779205847000,-203.3,0.00024324,2]
[422648657,1779205847000,-1224.0,0.00024377,2]
[422648626,1779205847000,-234.0,0.00023,2]
[422648631,1779205847000,-151.0,0.00023288,2]
[422648630,1779205847000,-151.0,0.00023288,2]
[422648632,1779205847000,-151.0,0.00023288,2]
[422648633,1779205847000,-151.0,0.00023288,2]
[422648634,1779205847000,-151.0,0.00023288,2]
[422648635,1779205847000,-151.0,0.00023288,2]
[422648637,1779205847000,-2550.0,0.00023297,2]
[422648636,1779205847000,-246.09,0.00023288,2]
[422648638,1779205847000,-900.0,0.00023297,7]
[422648639,1779205847000,-249.21,0.00023693,2]
[422648640,1779205847000,-362.38,0.00024,2]
[422648641,1779205847000,-362.38,0.00024,2]
[422648628,1779205847000,-248.58448134,0.00023175,2]
[422648643,1779205847000,-176.0,0.00024,2]
[422648642,1779205847000,-634.29,0.00024,7]
[422648654,1779205847000,-3589.0,0.00024324,2]
[422648655,1779205847000,-3542.0,0.00024377,2]
[422648651,1779205847000,-4955.30648113,0.0002429,7]
[422648656,1779205847000,-625.0,0.00024377,2]
[422648649,1779205847000,-797.67971274,0.00024105,2]
[422648652,1779205847000,-5813.7039333,0.0002429,7]
[422648648,1779205847000,-3893.28791994,0.00024104,2]
[422648647,1779205847000,-244.30943303,0.00024052,2]
[422648644,1779205847000,-274.0,0.00024,2]
[422648646,1779205847000,-243.0,0.00024,2]
[422648645,1779205847000,-215.72908396,0.00024,2]
[422648650,1779205847000,-291.0,0.00024164,7]
[422648732,1779205848000,-250.0,0.00026027,2]
[422648728,1779205848000,-350.0,0.00026027,2]
[422648729,1779205848000,-350.0,0.00026027,2]
[422648727,1779205848000,-4423.03224881,0.00026,2]
[422648722,1779205848000,-85914.58,0.00025786,2]
[422648726,1779205848000,-17998.34276408,0.00025896,2]
[422648725,1779205848000,-182.84263695,0.00025875,2]
[422648723,1779205848000,-4423.03224881,0.000258,2]
[422648724,1779205848000,-206.64,0.00025833,2]
[422648720,1779205848000,-2571.78,0.00025693,2]
[422648730,1779205848000,-323.0,0.00026027,2]
[422648731,1779205848000,-250.0,0.00026027,2]
[422648738,1779205848000,-186.58594873,0.00026185,21]
[422648735,1779205848000,-205.0,0.00026027,2]
[422648734,1779205848000,-150.0,0.00026027,2]
[422648736,1779205848000,-218.33240872,0.00026045,2]
[422648739,1779205848000,-634.29,0.000262,7]
[422648740,1779205848000,-1138.41267403,0.00026204,7]
[422648737,1779205848000,-995.28322473,0.00026147,7]
[422648741,1779205848000,-1850.0,0.00026223,2]
[422648742,1779205848000,-1850.0,0.00026223,2]
[422648743,1779205848000,-1850.0,0.00026223,2]
[422648744,1779205848000,-1850.0,0.00026223,2]
[422648745,1779205848000,-1850.0,0.00026223,2]
[422648721,1779205848000,-284.0,0.00025775,7]
[422648747,1779205848000,-1850.0,0.00026223,2]
[422648733,1779205848000,-163.0,0.00026027,2]
[422648718,1779205848000,-249.21,0.00025539,7]
[422648704,1779205848000,-151.0,0.00025,2]
[422648717,1779205848000,-4423.03224881,0.000255,2]
[422648746,1779205848000,-1850.0,0.00026223,2]
[422648689,1779205848000,-151.0,0.00025,2]
[422648690,1779205848000,-151.0,0.00025,2]
[422648693,1779205848000,-151.0,0.00025,2]
[422648692,1779205848000,-151.0,0.00025,2]
[422648691,1779205848000,-151.0,0.00025,2]
[422648695,1779205848000,-151.0,0.00025,2]